[Event "Titled Tuesday Blitz December 06 Early 2022"]
[White "Sarana, Alexey"]
[Black "Atakishiyev, Elmar"]
[WhiteFideId "24133795"]
[BlackFideId "13410547"]
[WhiteElo "2708"]
[BlackElo "2193"]
[Result "1-0"]
[Round "05"]
[TimeControl "180+1"]
[Date "2022.12.06"]
[WhiteClock "0:00:08"]
[BlackClock "0:00:06"]

1. d4 {[%clk 0:03:00]}  Nf6 {[%clk 0:02:59]} 2. c4 {[%clk 0:03:01]}  e6 {[%clk 0:02:58]} 3. Nc3 {[%clk 0:03:01]}  Bb4 {[%clk 0:02:58]} 4. e3 {[%clk 0:03:02]}  O-O {[%clk 0:02:56]} 5. Bd3 {[%clk 0:03:03]}  d5 {[%clk 0:02:56]} 6. a3 {[%clk 0:03:03]}  Bxc3+ {[%clk 0:02:53]} 7. bxc3 {[%clk 0:03:04]}  dxc4 {[%clk 0:02:53]} 8. Bxc4 {[%clk 0:03:05]}  c5 {[%clk 0:02:54]} 9. Bd3 {[%clk 0:03:05]}  Nc6 {[%clk 0:02:55]} 10. Nf3 {[%clk 0:03:05]}  Qc7 {[%clk 0:02:55]} 11. Bb2 {[%clk 0:03:03]}  Rd8 {[%clk 0:02:56]} 12. Qe2 {[%clk 0:03:03]}  e5 {[%clk 0:02:56]} 13. Nxe5 {[%clk 0:02:54]}  Nxe5 {[%clk 0:02:53]} 14. dxe5 {[%clk 0:02:55]}  Qxe5 {[%clk 0:02:54]} 15. c4 {[%clk 0:02:56]}  Qe7 {[%clk 0:02:43]} 16. e4 {[%clk 0:02:45]}  Re8 {[%clk 0:01:55]} 17. e5 {[%clk 0:02:43]}  Ng4 {[%clk 0:01:46]} 18. f4 {[%clk 0:02:25]}  f6 {[%clk 0:01:43]} 19. h3 {[%clk 0:02:15]}  Nh6 {[%clk 0:01:43]} 20. O-O-O {[%clk 0:01:22]}  fxe5 {[%clk 0:01:39]} 21. Bxe5 {[%clk 0:01:15]}  Bf5 {[%clk 0:01:25]} 22. Rhe1 {[%clk 0:01:13]}  Bxd3 {[%clk 0:01:17]} 23. Rxd3 {[%clk 0:00:58]}  Nf5 {[%clk 0:01:13]} 24. Qe4 {[%clk 0:00:53]}  Qf7 {[%clk 0:01:13]} 25. Rd5 {[%clk 0:00:41]}  Nd4 {[%clk 0:01:03]} 26. Kb2 {[%clk 0:00:40]}  Rac8 {[%clk 0:00:49]} 27. h4 {[%clk 0:00:37]}  b5 {[%clk 0:00:47]} 28. cxb5 {[%clk 0:00:19]}  Rcd8 {[%clk 0:00:29]} 29. Bxd4 {[%clk 0:00:12]}  cxd4 {[%clk 0:00:16]} 30. Qxd4 {[%clk 0:00:11]}  Rc8 {[%clk 0:00:09]} 31. Rxe8+ {[%clk 0:00:10]}  Rxe8 {[%clk 0:00:10]} 32. a4 {[%clk 0:00:09]}  Re1 {[%clk 0:00:08]} 33. Rd8+ {[%clk 0:00:09]}  Re8 {[%clk 0:00:08]} 34. Rxe8+ {[%clk 0:00:09]}  Qxe8 {[%clk 0:00:09]} 35. Kc3 {[%clk 0:00:08]}  Qe1+ {[%clk 0:00:07]} 36. Kc4 {[%clk 0:00:08]}  Qe2+ {[%clk 0:00:07]} 37. Kc5 {[%clk 0:00:09]}  Qe7+ {[%clk 0:00:07]} 38. Kc6 {[%clk 0:00:09]}  h6 {[%clk 0:00:03]} 39. h5 {[%clk 0:00:06]}  Kh7 {[%clk 0:00:03]} 40. Qd3+ {[%clk 0:00:06]}  Kh8 {[%clk 0:00:03]} 41. Qd5 {[%clk 0:00:04]}  Qb4 {[%clk 0:00:03]} 42. Qd8+ {[%clk 0:00:03]}  Kh7 {[%clk 0:00:03]} 43. Qd3+ {[%clk 0:00:04]}  Kh8 {[%clk 0:00:04]} 44. Qc2 {[%clk 0:00:04]}  Qa5 {[%clk 0:00:04]} 45. Kb7 {[%clk 0:00:03]}  Qb6+ {[%clk 0:00:05]} 46. Ka8 {[%clk 0:00:04]}  a6 {[%clk 0:00:05]} 47. Qc8+ {[%clk 0:00:04]}  Kh7 {[%clk 0:00:05]} 48. Qf5+ {[%clk 0:00:04]}  Kh8 {[%clk 0:00:05]} 49. Qc8+ {[%clk 0:00:05]}  Kh7 {[%clk 0:00:05]} 50. bxa6 {[%clk 0:00:05]}  Qd6 {[%clk 0:00:06]} 51. g4 {[%clk 0:00:05]}  Qd5+ {[%clk 0:00:05]} 52. Kb8 {[%clk 0:00:06]}  Qd6+ {[%clk 0:00:06]} 53. Kb7 {[%clk 0:00:07]}  Qb4+ {[%clk 0:00:05]} 54. Ka7 {[%clk 0:00:07]}  Qd4+ {[%clk 0:00:06]} 55. Ka8 {[%clk 0:00:07]}  Qd5+ {[%clk 0:00:06]} 56. Qb7 {[%clk 0:00:08]}  Qd8+ {[%clk 0:00:07]} 57. Ka7 {[%clk 0:00:08]}  Qd4+ {[%clk 0:00:08]} 58. Qb6 {[%clk 0:00:09]}  Qd7+ {[%clk 0:00:08]} 59. Kb8 {[%clk 0:00:09]}  Qe8+ {[%clk 0:00:08]} 60. Kb7 {[%clk 0:00:09]}  Qd7+ {[%clk 0:00:09]} 61. Qc7 {[%clk 0:00:10]}  Qd5+ {[%clk 0:00:09]} 62. Qc6 {[%clk 0:00:10]}  Qf7+ {[%clk 0:00:09]} 63. Kb6 {[%clk 0:00:10]}  Qb3+ {[%clk 0:00:09]} 64. Ka5 {[%clk 0:00:10]}  Qb8 {[%clk 0:00:06]} 65. Qc5 {[%clk 0:00:07]}  Qd8+ {[%clk 0:00:05]} 66. Kb5 {[%clk 0:00:08]}  Qd3+ {[%clk 0:00:05]} 67. Qc4 {[%clk 0:00:07]}  Qd7+ {[%clk 0:00:06]} 68. Kb4 {[%clk 0:00:08]}  Qd2+ {[%clk 0:00:06]} 69. Kb3 {[%clk 0:00:08]}  Qd1+ {[%clk 0:00:06]} 70. Qc2+ {[%clk 0:00:08]} 1-0


[Site "https://www.chess.com"]

[Event "Titled Tuesday Blitz December 06 Early 2022"]
[White "Sargsyan, Anna M."]
[Black "Wojtaszek, Radoslaw"]
[WhiteFideId "13308130"]
[BlackFideId "1118358"]
[WhiteElo "2284"]
[BlackElo "2605"]
[Result "0-1"]
[Round "05"]
[TimeControl "180+1"]
[Date "2022.12.06"]
[WhiteClock "0:00:05"]
[BlackClock "0:02:00"]

1. e4 {[%clk 0:02:54]}  c5 {[%clk 0:02:59]} 2. Nf3 {[%clk 0:02:50]}  a6 {[%clk 0:02:58]} 3. c3 {[%clk 0:02:45]}  d5 {[%clk 0:02:57]} 4. exd5 {[%clk 0:02:42]}  Qxd5 {[%clk 0:02:58]} 5. d4 {[%clk 0:02:42]}  e6 {[%clk 0:02:57]} 6. Be3 {[%clk 0:02:41]}  Nd7 {[%clk 0:02:52]} 7. c4 {[%clk 0:02:38]}  Qd6 {[%clk 0:02:49]} 8. Nc3 {[%clk 0:02:37]}  cxd4 {[%clk 0:02:48]} 9. Bxd4 {[%clk 0:02:24]}  Ngf6 {[%clk 0:02:47]} 10. Be2 {[%clk 0:02:23]}  Be7 {[%clk 0:02:46]} 11. O-O {[%clk 0:02:21]}  O-O {[%clk 0:02:46]} 12. Qc2 {[%clk 0:02:14]}  b6 {[%clk 0:02:45]} 13. Rad1 {[%clk 0:02:11]}  Qf4 {[%clk 0:02:44]} 14. Be3 {[%clk 0:01:57]}  Qc7 {[%clk 0:02:42]} 15. Rd2 {[%clk 0:01:31]}  Bb7 {[%clk 0:02:37]} 16. Rfd1 {[%clk 0:01:31]}  h6 {[%clk 0:02:35]} 17. h3 {[%clk 0:01:26]}  Rac8 {[%clk 0:02:32]} 18. Nd4 {[%clk 0:01:21]}  Ne5 {[%clk 0:02:29]} 19. Bf4 {[%clk 0:01:12]}  Ba8 {[%clk 0:02:23]} 20. Bg3 {[%clk 0:01:06]}  Qb7 {[%clk 0:02:18]} 21. Bf3 {[%clk 0:00:05]}  Nxf3+ {[%clk 0:02:17]} 22. Nxf3 {[%clk 0:00:04]}  Rxc4 {[%clk 0:02:18]} 23. Qb3 {[%clk 0:00:04]}  Rb4 {[%clk 0:02:11]} 24. Qc2 {[%clk 0:00:04]}  Nh5 {[%clk 0:02:01]} 25. Bd6 {[%clk 0:00:04]}  Bxd6 {[%clk 0:01:59]} 26. Rxd6 {[%clk 0:00:05]}  Nf4 {[%clk 0:02:00]} 0-1


[Site "https://www.chess.com"]

[Event "Titled Tuesday Blitz December 06 Early 2022"]
[White "Simonovic, Miroslav"]
[Black "Mazurkiewicz, Michal"]
[WhiteFideId "919152"]
[BlackFideId "1124943"]
[WhiteElo "2057"]
[BlackElo "2081"]
[Result "1/2-1/2"]
[Round "05"]
[TimeControl "180+1"]
[Date "2022.12.07"]
[WhiteClock "0:00:07"]
[BlackClock "0:00:12"]

1. d4 {[%clk 0:02:57]}  Nf6 {[%clk 0:02:59]} 2. Bg5 {[%clk 0:02:57]}  e6 {[%clk 0:02:59]} 3. e4 {[%clk 0:02:57]}  h6 {[%clk 0:02:59]} 4. Bxf6 {[%clk 0:02:57]}  Qxf6 {[%clk 0:03:00]} 5. e5 {[%clk 0:02:57]}  Qg5 {[%clk 0:02:58]} 6. Nf3 {[%clk 0:02:55]}  Qg6 {[%clk 0:02:55]} 7. g3 {[%clk 0:02:49]}  d6 {[%clk 0:02:53]} 8. Bd3 {[%clk 0:02:39]}  Qh5 {[%clk 0:02:51]} 9. h3 {[%clk 0:02:26]}  f5 {[%clk 0:02:27]} 10. exf6 {[%clk 0:02:25]}  gxf6 {[%clk 0:02:27]} 11. g4 {[%clk 0:01:43]}  Qf7 {[%clk 0:02:18]} 12. Nh4 {[%clk 0:01:25]}  Rg8 {[%clk 0:02:16]} 13. c3 {[%clk 0:01:23]}  Be7 {[%clk 0:02:15]} 14. Qc2 {[%clk 0:01:22]}  f5 {[%clk 0:02:15]} 15. Ng2 {[%clk 0:01:08]}  fxg4 {[%clk 0:02:11]} 16. hxg4 {[%clk 0:01:08]}  Rxg4 {[%clk 0:02:11]} 17. Ne3 {[%clk 0:01:07]}  Rg8 {[%clk 0:02:01]} 18. Rxh6 {[%clk 0:01:05]}  Rg1+ {[%clk 0:01:40]} 19. Nf1 {[%clk 0:01:05]}  Kd8 {[%clk 0:00:45]} 20. Rh8+ {[%clk 0:00:44]}  Rg8 {[%clk 0:00:44]} 21. Rxg8+ {[%clk 0:00:43]}  Qxg8 {[%clk 0:00:45]} 22. Nbd2 {[%clk 0:00:41]}  c6 {[%clk 0:00:45]} 23. O-O-O {[%clk 0:00:41]}  Kc7 {[%clk 0:00:46]} 24. Bh7 {[%clk 0:00:26]}  Qf7 {[%clk 0:00:44]} 25. f3 {[%clk 0:00:20]}  Nd7 {[%clk 0:00:43]} 26. c4 {[%clk 0:00:16]}  Nf6 {[%clk 0:00:43]} 27. Bg6 {[%clk 0:00:15]}  Qg7 {[%clk 0:00:44]} 28. Bd3 {[%clk 0:00:13]}  Bd7 {[%clk 0:00:44]} 29. Ne3 {[%clk 0:00:13]}  Qg5 {[%clk 0:00:42]} 30. Ndf1 {[%clk 0:00:10]}  Rh8 {[%clk 0:00:39]} 31. Kb1 {[%clk 0:00:10]}  Rh1 {[%clk 0:00:39]} 32. Qf2 {[%clk 0:00:09]}  Qf4 {[%clk 0:00:36]} 33. Ng2 {[%clk 0:00:07]}  Ng4 {[%clk 0:00:31]} 34. Nxf4 {[%clk 0:00:06]}  Nxf2 {[%clk 0:00:31]} 35. Re1 {[%clk 0:00:06]}  Nxd3 {[%clk 0:00:31]} 36. Nxd3 {[%clk 0:00:07]}  e5 {[%clk 0:00:28]} 37. dxe5 {[%clk 0:00:06]}  Bh3 {[%clk 0:00:29]} 38. Nd2 {[%clk 0:00:05]}  Rh2 {[%clk 0:00:23]} 39. exd6+ {[%clk 0:00:05]}  Bxd6 {[%clk 0:00:22]} 40. Ne4 {[%clk 0:00:04]}  Be7 {[%clk 0:00:17]} 41. c5 {[%clk 0:00:04]}  Bf5 {[%clk 0:00:17]} 42. Nf4 {[%clk 0:00:03]}  Bxe4+ {[%clk 0:00:12]} 43. Rxe4 {[%clk 0:00:02]}  Bxc5 {[%clk 0:00:12]} 44. Ne6+ {[%clk 0:00:02]}  Kb6 {[%clk 0:00:12]} 45. Nxc5 {[%clk 0:00:03]}  Kxc5 {[%clk 0:00:13]} 46. Re7 {[%clk 0:00:03]}  Kb6 {[%clk 0:00:13]} 47. Rf7 {[%clk 0:00:03]}  Rf2 {[%clk 0:00:13]} 48. a3 {[%clk 0:00:03]}  c5 {[%clk 0:00:13]} 49. Ka2 {[%clk 0:00:03]}  Kc6 {[%clk 0:00:14]} 50. Kb3 {[%clk 0:00:03]}  b5 {[%clk 0:00:12]} 51. Rxa7 {[%clk 0:00:03]}  Rxf3+ {[%clk 0:00:13]} 52. Ka2 {[%clk 0:00:02]}  Kd5 {[%clk 0:00:13]} 53. Rh7 {[%clk 0:00:02]}  Kc4 {[%clk 0:00:10]} 54. Rh2 {[%clk 0:00:03]}  Rd3 {[%clk 0:00:09]} 55. Rc2+ {[%clk 0:00:03]}  Kd5 {[%clk 0:00:09]} 56. Rh2 {[%clk 0:00:04]}  c4 {[%clk 0:00:10]} 57. Rh5+ {[%clk 0:00:04]}  Kc6 {[%clk 0:00:10]} 58. Rh2 {[%clk 0:00:05]}  Re3 {[%clk 0:00:10]} 59. Rc2 {[%clk 0:00:05]}  Kc5 {[%clk 0:00:10]} 60. Rh2 {[%clk 0:00:06]}  Kd4 {[%clk 0:00:11]} 61. Rh4+ {[%clk 0:00:06]}  Re4 {[%clk 0:00:11]} 62. Rh2 {[%clk 0:00:06]}  Kd3 {[%clk 0:00:11]} 63. Rh3+ {[%clk 0:00:07]}  Kc2 {[%clk 0:00:11]} 64. Rh2+ {[%clk 0:00:07]}  Kd3 {[%clk 0:00:11]} 65. Rh3+ {[%clk 0:00:07]}  Kd4 {[%clk 0:00:12]} 66. Rh2 {[%clk 0:00:07]}  Kc5 {[%clk 0:00:12]} 67. Rh5+ {[%clk 0:00:07]}  Kd4 {[%clk 0:00:12]} 68. Rh2 {[%clk 0:00:07]} 1/2-1/2


[Site "https://www.chess.com"]

[Event "Titled Tuesday Blitz December 06 Early 2022"]
[White "Skliarov, Viktor"]
[Black "Rosenberg, Evan S"]
[WhiteFideId "14106736"]
[BlackFideId "2019299"]
[WhiteElo "2284"]
[BlackElo "2355"]
[Result "1-0"]
[Round "05"]
[TimeControl "180+1"]
[Date "2022.12.07"]
[WhiteClock "0:00:53"]
[BlackClock "0:00:05"]

1. e4 {[%clk 0:03:00]}  e5 {[%clk 0:02:57]} 2. Nc3 {[%clk 0:02:58]}  Nf6 {[%clk 0:02:55]} 3. Bc4 {[%clk 0:02:59]}  Bc5 {[%clk 0:02:49]} 4. d3 {[%clk 0:02:56]}  h6 {[%clk 0:02:47]} 5. h3 {[%clk 0:02:54]}  c6 {[%clk 0:02:43]} 6. Qf3 {[%clk 0:02:52]}  b5 {[%clk 0:02:39]} 7. Bb3 {[%clk 0:02:50]}  a5 {[%clk 0:02:37]} 8. a3 {[%clk 0:02:48]}  a4 {[%clk 0:02:34]} 9. Ba2 {[%clk 0:02:47]}  d6 {[%clk 0:02:32]} 10. Nge2 {[%clk 0:02:46]}  Be6 {[%clk 0:02:05]} 11. Ng3 {[%clk 0:02:37]}  Nbd7 {[%clk 0:01:37]} 12. Nf5 {[%clk 0:02:24]}  Bxa2 {[%clk 0:00:43]} 13. Rxa2 {[%clk 0:02:20]}  Rg8 {[%clk 0:00:43]} 14. O-O {[%clk 0:02:10]}  Nh7 {[%clk 0:00:36]} 15. Be3 {[%clk 0:01:53]}  Qf6 {[%clk 0:00:30]} 16. Rd1 {[%clk 0:01:31]}  Ng5 {[%clk 0:00:25]} 17. Qg3 {[%clk 0:01:23]}  Bxe3 {[%clk 0:00:16]} 18. fxe3 {[%clk 0:01:22]}  O-O-O {[%clk 0:00:14]} 19. b3 {[%clk 0:01:21]}  axb3 {[%clk 0:00:12]} 20. cxb3 {[%clk 0:01:21]}  Kc7 {[%clk 0:00:13]} 21. Rc1 {[%clk 0:01:16]}  Nc5 {[%clk 0:00:13]} 22. b4 {[%clk 0:01:14]}  Nxd3 {[%clk 0:00:13]} 23. Nd5+ {[%clk 0:01:14]}  Kb7 {[%clk 0:00:12]} 24. Nxf6 {[%clk 0:01:14]}  gxf6 {[%clk 0:00:12]} 25. Rd1 {[%clk 0:01:08]}  Nxe4 {[%clk 0:00:11]} 26. Qh4 {[%clk 0:01:05]}  Ndf2 {[%clk 0:00:07]} 27. Rxf2 {[%clk 0:01:05]}  Nxf2 {[%clk 0:00:07]} 28. Kxf2 {[%clk 0:01:05]}  Rg5 {[%clk 0:00:07]} 29. g4 {[%clk 0:00:59]}  d5 {[%clk 0:00:07]} 30. Qxh6 {[%clk 0:00:58]}  Rdg8 {[%clk 0:00:07]} 31. Qxf6 {[%clk 0:00:58]}  R5g6 {[%clk 0:00:06]} 32. Qxf7+ {[%clk 0:00:58]}  Kb6 {[%clk 0:00:06]} 33. Ne7 {[%clk 0:00:55]}  R8g7 {[%clk 0:00:05]} 34. Qxg6 {[%clk 0:00:55]}  Rxe7 {[%clk 0:00:05]} 35. Rxd5 {[%clk 0:00:53]} 1-0


[Site "https://www.chess.com"]

[Event "Titled Tuesday Blitz December 06 Early 2022"]
[White "Slovineanu"]
[Black "Saravana, Krishnan P."]
[BlackFideId "5018382"]
[WhiteElo "2239"]
[BlackElo "2190"]
[Result "0-1"]
[Round "05"]
[TimeControl "180+1"]
[Date "2022.12.07"]
[WhiteClock "0:00:03"]
[BlackClock "0:00:09"]

1. d4 {[%clk 0:03:00]}  Nf6 {[%clk 0:02:55]} 2. Nf3 {[%clk 0:03:01]}  d5 {[%clk 0:02:53]} 3. c4 {[%clk 0:03:00]}  e6 {[%clk 0:02:51]} 4. e3 {[%clk 0:03:00]}  b6 {[%clk 0:02:47]} 5. b3 {[%clk 0:02:59]}  Bb7 {[%clk 0:02:47]} 6. Bd3 {[%clk 0:02:58]}  Bb4+ {[%clk 0:02:47]} 7. Nbd2 {[%clk 0:02:56]}  O-O {[%clk 0:02:46]} 8. O-O {[%clk 0:02:54]}  Nbd7 {[%clk 0:02:46]} 9. Bb2 {[%clk 0:02:54]}  c5 {[%clk 0:02:38]} 10. a3 {[%clk 0:02:50]}  Bxd2 {[%clk 0:02:38]} 11. Nxd2 {[%clk 0:02:47]}  cxd4 {[%clk 0:02:37]} 12. exd4 {[%clk 0:02:43]}  dxc4 {[%clk 0:02:37]} 13. bxc4 {[%clk 0:02:31]}  Nc5 {[%clk 0:02:37]} 14. Bc2 {[%clk 0:02:23]}  Nce4 {[%clk 0:02:35]} 15. Nxe4 {[%clk 0:02:22]}  Bxe4 {[%clk 0:02:34]} 16. d5 {[%clk 0:01:50]}  Bxc2 {[%clk 0:02:28]} 17. Qxc2 {[%clk 0:01:45]}  exd5 {[%clk 0:02:27]} 18. Bxf6 {[%clk 0:01:46]}  Qxf6 {[%clk 0:02:25]} 19. cxd5 {[%clk 0:01:46]}  Rfd8 {[%clk 0:02:23]} 20. Rad1 {[%clk 0:01:45]}  Rac8 {[%clk 0:02:23]} 21. Qe4 {[%clk 0:01:41]}  Rd6 {[%clk 0:02:15]} 22. Rd3 {[%clk 0:01:36]}  g6 {[%clk 0:02:11]} 23. g3 {[%clk 0:01:30]}  Kg7 {[%clk 0:02:11]} 24. Re1 {[%clk 0:01:20]}  Rcd8 {[%clk 0:02:07]} 25. Rf3 {[%clk 0:01:05]}  Qg5 {[%clk 0:01:10]} 26. Qe7 {[%clk 0:01:04]}  Qxe7 {[%clk 0:01:10]} 27. Rxe7 {[%clk 0:01:03]}  Rf6 {[%clk 0:01:10]} 28. Rxf6 {[%clk 0:00:56]}  Kxf6 {[%clk 0:01:09]} 29. Rxa7 {[%clk 0:00:57]}  Rxd5 {[%clk 0:01:10]} 30. Kg2 {[%clk 0:00:54]}  Ra5 {[%clk 0:01:02]} 31. Rb7 {[%clk 0:00:53]}  Ra6 {[%clk 0:00:59]} 32. h4 {[%clk 0:00:51]}  h5 {[%clk 0:00:59]} 33. a4 {[%clk 0:00:47]}  Ke6 {[%clk 0:00:55]} 34. Kf3 {[%clk 0:00:47]}  f5 {[%clk 0:00:54]} 35. Rg7 {[%clk 0:00:41]}  Kf6 {[%clk 0:00:51]} 36. Rb7 {[%clk 0:00:41]}  Ke5 {[%clk 0:00:51]} 37. Rg7 {[%clk 0:00:36]}  Rxa4 {[%clk 0:00:37]} 38. Rxg6 {[%clk 0:00:37]}  b5 {[%clk 0:00:37]} 39. Rb6 {[%clk 0:00:31]}  Ra3+ {[%clk 0:00:37]} 40. Ke2 {[%clk 0:00:26]}  Rb3 {[%clk 0:00:37]} 41. f3 {[%clk 0:00:20]}  f4 {[%clk 0:00:34]} 42. g4 {[%clk 0:00:17]}  hxg4 {[%clk 0:00:32]} 43. fxg4 {[%clk 0:00:17]}  f3+ {[%clk 0:00:30]} 44. Kf2 {[%clk 0:00:17]}  Kf4 {[%clk 0:00:30]} 45. Rf6+ {[%clk 0:00:13]}  Kxg4 {[%clk 0:00:30]} 46. h5 {[%clk 0:00:13]}  Rb2+ {[%clk 0:00:26]} 47. Kf1 {[%clk 0:00:12]}  b4 {[%clk 0:00:21]} 48. h6 {[%clk 0:00:11]}  b3 {[%clk 0:00:20]} 49. h7 {[%clk 0:00:11]}  Rh2 {[%clk 0:00:20]} 50. Rg6+ {[%clk 0:00:09]}  Kf4 {[%clk 0:00:19]} 51. Rf6+ {[%clk 0:00:09]}  Ke4 {[%clk 0:00:16]} 52. Rb6 {[%clk 0:00:08]}  Kf4 {[%clk 0:00:11]} 53. Rxb3 {[%clk 0:00:04]}  Kg3 {[%clk 0:00:10]} 54. Kg1 {[%clk 0:00:04]}  Rxh7 {[%clk 0:00:09]} 55. Ra3 {[%clk 0:00:04]}  Rb7 {[%clk 0:00:09]} 56. Ra1 {[%clk 0:00:03]}  Rb2 {[%clk 0:00:09]} 57. Rb1 {[%clk 0:00:03]}  Rxb1# {[%clk 0:00:09]} 0-1


[Site "https://www.chess.com"]

[Event "Titled Tuesday Blitz December 06 Early 2022"]
[White "Tanenbaum, Zachary"]
[Black "Martinez Alcantara, Jose Eduardo"]
[WhiteFideId "2060850"]
[BlackFideId "3805662"]
[WhiteElo "2175"]
[BlackElo "2707"]
[Result "0-1"]
[Round "05"]
[TimeControl "180+1"]
[Date "2022.12.06"]
[WhiteClock "0:00:05"]
[BlackClock "0:00:58"]

1. e4 {[%clk 0:02:56]}  e5 {[%clk 0:03:00]} 2. Nf3 {[%clk 0:02:56]}  Nc6 {[%clk 0:03:00]} 3. Bc4 {[%clk 0:02:56]}  Bc5 {[%clk 0:03:00]} 4. c3 {[%clk 0:02:57]}  Nf6 {[%clk 0:03:00]} 5. d3 {[%clk 0:02:57]}  d6 {[%clk 0:03:00]} 6. Nbd2 {[%clk 0:02:57]}  a5 {[%clk 0:03:00]} 7. a4 {[%clk 0:02:57]}  h6 {[%clk 0:02:59]} 8. Nf1 {[%clk 0:02:57]}  O-O {[%clk 0:02:59]} 9. Ng3 {[%clk 0:02:57]}  Ba7 {[%clk 0:02:54]} 10. O-O {[%clk 0:02:56]}  Ne7 {[%clk 0:02:53]} 11. d4 {[%clk 0:02:52]}  exd4 {[%clk 0:02:52]} 12. cxd4 {[%clk 0:02:50]}  d5 {[%clk 0:02:48]} 13. Bd3 {[%clk 0:02:46]}  dxe4 {[%clk 0:02:47]} 14. Nxe4 {[%clk 0:02:47]}  Nxe4 {[%clk 0:02:47]} 15. Bxe4 {[%clk 0:02:47]}  c6 {[%clk 0:02:38]} 16. Qb3 {[%clk 0:02:34]}  Nd5 {[%clk 0:02:17]} 17. Rd1 {[%clk 0:02:29]}  Re8 {[%clk 0:02:14]} 18. Ne5 {[%clk 0:01:51]}  f6 {[%clk 0:02:08]} 19. Bxd5+ {[%clk 0:01:39]}  Qxd5 {[%clk 0:02:07]} 20. Qxd5+ {[%clk 0:01:38]}  cxd5 {[%clk 0:02:08]} 21. Nf3 {[%clk 0:01:38]}  Bg4 {[%clk 0:02:04]} 22. Be3 {[%clk 0:01:34]}  Rac8 {[%clk 0:02:04]} 23. Rac1 {[%clk 0:01:34]}  Kf7 {[%clk 0:01:59]} 24. Kf1 {[%clk 0:01:26]}  Bf5 {[%clk 0:01:57]} 25. Rxc8 {[%clk 0:01:19]}  Rxc8 {[%clk 0:01:57]} 26. Rc1 {[%clk 0:01:20]}  Rxc1+ {[%clk 0:01:55]} 27. Bxc1 {[%clk 0:01:21]}  Bc2 {[%clk 0:01:56]} 28. Bd2 {[%clk 0:01:12]}  Bb6 {[%clk 0:01:55]} 29. b4 {[%clk 0:00:54]}  axb4 {[%clk 0:01:54]} 30. Bxb4 {[%clk 0:00:54]}  Bxa4 {[%clk 0:01:54]} 31. Ke2 {[%clk 0:00:53]}  Bd7 {[%clk 0:01:54]} 32. h3 {[%clk 0:00:51]}  g5 {[%clk 0:01:54]} 33. Ke3 {[%clk 0:00:50]}  Bc7 {[%clk 0:01:54]} 34. Ne1 {[%clk 0:00:43]}  Bb5 {[%clk 0:01:54]} 35. Nc2 {[%clk 0:00:39]}  Bf4+ {[%clk 0:01:53]} 36. Kf3 {[%clk 0:00:39]}  Ba4 {[%clk 0:01:53]} 37. Ne3 {[%clk 0:00:38]}  Ke6 {[%clk 0:01:53]} 38. g4 {[%clk 0:00:36]}  Bc7 {[%clk 0:01:39]} 39. Bf8 {[%clk 0:00:31]}  Bb6 {[%clk 0:01:32]} 40. Nf5 {[%clk 0:00:23]}  Bc2 {[%clk 0:01:32]} 41. Nd6 {[%clk 0:00:20]}  Bxd4 {[%clk 0:01:27]} 42. Nxb7 {[%clk 0:00:20]}  Be4+ {[%clk 0:01:21]} 43. Ke2 {[%clk 0:00:21]}  Bg2 {[%clk 0:01:15]} 44. Bxh6 {[%clk 0:00:21]}  Be5 {[%clk 0:01:11]} 45. Nc5+ {[%clk 0:00:17]}  Kf7 {[%clk 0:01:11]} 46. Nd3 {[%clk 0:00:18]}  Bd6 {[%clk 0:01:11]} 47. f4 {[%clk 0:00:17]}  Kg6 {[%clk 0:01:11]} 48. fxg5 {[%clk 0:00:13]}  fxg5 {[%clk 0:01:12]} 49. Bxg5 {[%clk 0:00:09]}  Kxg5 {[%clk 0:01:11]} 50. Ke3 {[%clk 0:00:09]}  Bxh3 {[%clk 0:01:01]} 51. Kd4 {[%clk 0:00:10]}  Bg2 {[%clk 0:01:02]} 52. Ne1 {[%clk 0:00:09]}  Be4 {[%clk 0:01:01]} 53. Nc2 {[%clk 0:00:05]}  Bxc2 {[%clk 0:00:56]} 54. Kxd5 {[%clk 0:00:06]}  Bf4 {[%clk 0:00:56]} 55. Kd4 {[%clk 0:00:06]}  Kxg4 {[%clk 0:00:57]} 56. Kd5 {[%clk 0:00:06]}  Kf3 {[%clk 0:00:56]} 57. Kd4 {[%clk 0:00:07]}  Be4 {[%clk 0:00:57]} 58. Kc5 {[%clk 0:00:06]}  Ke3 {[%clk 0:00:58]} 59. Kc4 {[%clk 0:00:06]}  Bd6 {[%clk 0:00:58]} 60. Kc3 {[%clk 0:00:06]}  Bd5 {[%clk 0:00:58]} 61. Kb2 {[%clk 0:00:06]}  Kd2 {[%clk 0:00:57]} 62. Ka1 {[%clk 0:00:06]}  Kc3 {[%clk 0:00:56]} 63. Kb1 {[%clk 0:00:06]}  Bb3 {[%clk 0:00:54]} 64. Kc1 {[%clk 0:00:05]}  Bf4+ {[%clk 0:00:54]} 65. Kb1 {[%clk 0:00:05]}  Kb4 {[%clk 0:00:55]} 66. Kb2 {[%clk 0:00:05]}  Be3 {[%clk 0:00:55]} 67. Kb1 {[%clk 0:00:05]}  Ka3 {[%clk 0:00:56]} 68. Ka1 {[%clk 0:00:05]}  Bf7 {[%clk 0:00:56]} 69. Kb1 {[%clk 0:00:04]}  Bg6+ {[%clk 0:00:57]} 70. Ka1 {[%clk 0:00:05]}  Bd4# {[%clk 0:00:58]} 0-1


[Site "https://www.chess.com"]